fUSD/lending_fUSD_20260617
["ID","MTS","AMOUNT","RATE_DAILY","PERIOD"]
[425341613,1781701847000,-688.88465292,0.00029694,7]
[425341618,1781701847000,-433.37372534,0.00029694,7]
[425341620,1781701847000,-388.94952594,0.00029694,7]
[425341621,1781701847000,-446.36171057,0.00029694,7]
[425341622,1781701847000,-203.18865755,0.00029694,7]
[425341626,1781701847000,-407.91833247,0.00029694,7]
[425341628,1781701847000,-623.75017804,0.00029694,7]
[425341623,1781701847000,-447.35888299,0.00029694,7]
[425341629,1781701847000,-453.78845357,0.00029694,7]
[425341625,1781701847000,-151.22218563,0.00029694,7]
[425341627,1781701847000,-232.87883147,0.00029694,7]
[425341619,1781701847000,-245.70421563,0.00029694,7]
[425341630,1781701847000,-637.96843191,0.00029694,7]
[425341567,1781701847000,-427.45002542,0.00029691,7]
[425341593,1781701847000,-450.95100998,0.00029694,7]
[425341596,1781701847000,-427.75422277,0.00029694,5]
[425341610,1781701847000,-410.45976411,0.00029694,7]
[425341594,1781701847000,-311.31878383,0.00029694,7]
[425341572,1781701847000,-156.96589794,0.00029693,7]
[425341568,1781701847000,-165.64447569,0.00029691,7]
[425341579,1781701847000,-673.27380877,0.00029694,7]
[425341571,1781701847000,-222.28804575,0.00029691,7]
[425341578,1781701847000,-461.90662617,0.00029693,7]
[425341600,1781701847000,-429.30944176,0.00029694,7]
[425341573,1781701847000,-304.16737871,0.00029693,7]
[425341570,1781701847000,-422.22586421,0.00029691,7]
[425341576,1781701847000,-458.43204737,0.00029693,7]
[425341575,1781701847000,-494.58590763,0.00029693,7]
[425341577,1781701847000,-392.23222405,0.00029693,7]
[425341581,1781701847000,-498.44971249,0.00029694,7]
[425341592,1781701847000,-633.33879631,0.00029694,7]
[425341580,1781701847000,-697.57752605,0.00029694,7]
[425341583,1781701847000,-247.21875952,0.00029694,7]
[425341574,1781701847000,-350.09250233,0.00029693,7]
[425341624,1781701847000,-159.98959902,0.00029694,2]
[425341591,1781701847000,-226.39028697,0.00029694,7]
[425341595,1781701847000,-451.59264128,0.00029694,7]
[425341597,1781701847000,-738.69528835,0.00029694,7]
[425341604,1781701847000,-412.98139069,0.00029694,7]
[425341586,1781701847000,-426.66196277,0.00029694,7]
[425341587,1781701847000,-466.04692639,0.00029694,7]
[425341598,1781701847000,-435.49869073,0.00029694,7]
[425341584,1781701847000,-174.08276585,0.00029694,7]
[425341585,1781701847000,-233.97262355,0.00029694,7]
[425341589,1781701847000,-464.02589543,0.00029694,7]
[425341590,1781701847000,-377.62593374,0.00029694,7]
[425341582,1781701847000,-165.49040856,0.00029694,2]
[425341588,1781701847000,-405.39963185,0.00029694,7]
[425341648,1781701848000,-404.66423184,0.000297,7]
[425341641,1781701848000,-336.70936977,0.000297,7]
[425341657,1781701848000,-461.37671432,0.000297,7]
[425341647,1781701848000,-471.01020031,0.000297,7]
[425341646,1781701848000,-440.98401077,0.000297,7]
[425341644,1781701848000,-809.91734291,0.000297,7]
[425341640,1781701848000,-297.95197213,0.000297,7]
[425341637,1781701848000,-731.28120125,0.00029694,7]
[425341643,1781701848000,-499.05890353,0.000297,7]
[425341638,1781701848000,-563.54734855,0.00029694,7]
[425341639,1781701848000,-457.21643915,0.00029694,7]
[425341635,1781701848000,-446.69324162,0.00029694,7]
[425341634,1781701848000,-424.25142858,0.00029694,7]
[425341633,1781701848000,-438.80987166,0.00029694,7]
[425341642,1781701848000,-511.65017508,0.000297,7]
[425341631,1781701848000,-420.99143257,0.00029694,7]
[425341632,1781701848000,-429.70904658,0.00029694,7]
[425341651,1781701848000,-506.71582238,0.000297,7]
[425341636,1781701848000,-472.33858618,0.00029694,7]
[425341655,1781701848000,-472.03898078,0.000297,7]
[425341649,1781701848000,-428.51062644,0.000297,7]
[425341652,1781701848000,-441.74981821,0.000297,7]
[425341656,1781701848000,-426.30980553,0.000297,7]
[425341671,1781701848000,-386.55591139,0.000297,7]
[425341672,1781701848000,-23744.31151175,0.00029703,7]
[425341670,1781701848000,-436.20913464,0.000297,7]
[425341669,1781701848000,-634.44181515,0.000297,7]
[425341663,1781701848000,-237.47866217,0.000297,7]
[425341666,1781701848000,-405.25800553,0.000297,7]
[425341668,1781701848000,-639.0776946,0.000297,7]
[425341664,1781701848000,-448.97789428,0.000297,7]
[425341662,1781701848000,-265.84282166,0.000297,7]
[425341667,1781701848000,-463.12723611,0.000297,7]
[425341665,1781701848000,-161.17536081,0.000297,7]
[425341658,1781701848000,-712.4744517,0.000297,7]
[425341661,1781701848000,-336.22379329,0.000297,7]
[425341659,1781701848000,-619.14813489,0.000297,7]
[425341654,1781701848000,-637.67947365,0.000297,7]
[425341653,1781701848000,-472.21764709,0.000297,7]
[425341645,1781701848000,-436.64644692,0.000297,7]
[425341660,1781701848000,-694.02978682,0.000297,7]
[425341650,1781701848000,-411.32990262,0.000297,2]
[425341679,1781701850000,-597.079496,0.00029703,7]
[425341680,1781701850000,-151.0,0.00029703,7]
[425341677,1781701850000,-3120.1198912,0.00029703,7]
[425341678,1781701850000,-151.0,0.00029703,7]
[425341674,1781701850000,-301.269513,0.00028899,7]
[425341675,1781701850000,-301.269513,0.00029,7]
[425341681,1781701850000,-597.079496,0.00029703,7]
[425341673,1781701850000,-188.311857,0.00028899,7]
[425341689,1781701850000,-323.10992686,0.000298,7]
[425341676,1781701850000,-188.311857,0.00029,7]
[425341682,1781701850000,-270.343244,0.00029703,7]
[425341686,1781701850000,-150.0,0.00029734,30]
[425341691,1781701850000,-678.77007314,0.000298,7]
[425341693,1781701850000,-446.32710565,0.00029808,7]
[425341692,1781701850000,-1723.22894194,0.00029808,7]
[425341690,1781701850000,-301.269513,0.00029,7]
[425341688,1781701850000,-2000.0,0.00029761,7]
[425341685,1781701850000,-151.0,0.00029703,7]
[425341683,1781701850000,-597.079496,0.00029703,7]
[425341684,1781701850000,-597.079496,0.00029703,7]
[425341687,1781701850000,-508.0,0.00029737,4]
[425341715,1781701851000,-500.0,0.00029899,2]
[425341710,1781701851000,-500.0,0.00029899,2]
[425341712,1781701851000,-500.0,0.00029899,2]
[425341714,1781701851000,-500.0,0.00029899,2]
[425341711,1781701851000,-500.0,0.00029899,2]
[425341719,1781701851000,-500.0,0.00029899,2]
[425341726,1781701851000,-500.0,0.00029899,2]
[425341718,1781701851000,-500.0,0.00029899,2]
[425341729,1781701851000,-500.0,0.00029899,2]
[425341723,1781701851000,-500.0,0.00029899,2]
[425341708,1781701851000,-500.0,0.00029899,2]
[425341730,1781701851000,-500.0,0.00029899,2]
[425341725,1781701851000,-500.0,0.00029899,2]
[425341724,1781701851000,-500.0,0.00029899,2]
[425341720,1781701851000,-500.0,0.00029899,2]
[425341705,1781701851000,-151.0,0.00029899,7]
[425341706,1781701851000,-242.981325,0.00029899,7]
[425341707,1781701851000,-500.0,0.00029899,2]
[425341695,1781701851000,-302.0,0.00027397,10]
[425341696,1781701851000,-5229.60395241,0.00029808,7]
[425341694,1781701851000,-301.77,0.00017109,2]
[425341697,1781701851000,-150.0,0.00029816,30]
[425341698,1781701851000,-150.0,0.00029816,30]
[425341702,1781701851000,-150.0,0.00029878,30]
[425341727,1781701851000,-500.0,0.00029899,2]
[425341700,1781701851000,-150.0,0.00029816,30]
[425341703,1781701851000,-150.0,0.00029897,30]
[425341701,1781701851000,-698.73,0.00029828,8]
[425341704,1781701851000,-151.0,0.00029899,7]
[425341699,1781701851000,-150.0,0.00029816,30]
[425341717,1781701851000,-500.0,0.00029899,2]
[425341716,1781701851000,-500.0,0.00029899,2]
[425341713,1781701851000,-500.0,0.00029899,2]
[425341709,1781701851000,-500.0,0.00029899,2]
[425341722,1781701851000,-500.0,0.00029899,2]
[425341759,1781701851000,-500.0,0.00029899,2]
[425341728,1781701851000,-500.0,0.00029899,2]
[425341749,1781701851000,-500.0,0.00029899,2]
[425341748,1781701851000,-500.0,0.00029899,2]
[425341753,1781701851000,-500.0,0.00029899,2]
[425341747,1781701851000,-500.0,0.00029899,2]
[425341752,1781701851000,-500.0,0.00029899,2]
[425341750,1781701851000,-500.0,0.00029899,2]
[425341751,1781701851000,-500.0,0.00029899,2]
[425341758,1781701851000,-500.0,0.00029899,2]
[425341757,1781701851000,-500.0,0.00029899,2]
[425341760,1781701851000,-500.0,0.00029899,2]
[425341761,1781701851000,-500.0,0.00029899,2]
[425341763,1781701851000,-500.0,0.00029899,2]
[425341764,1781701851000,-500.0,0.00029899,2]
[425341765,1781701851000,-500.0,0.00029899,2]
[425341721,1781701851000,-500.0,0.00029899,2]
[425341746,1781701851000,-500.0,0.00029899,2]
[425341756,1781701851000,-500.0,0.00029899,2]
[425341762,1781701851000,-500.0,0.00029899,2]
[425341744,1781701851000,-500.0,0.00029899,2]
[425341745,1781701851000,-500.0,0.00029899,2]
[425341732,1781701851000,-500.0,0.00029899,2]
[425341740,1781701851000,-500.0,0.00029899,2]
[425341731,1781701851000,-500.0,0.00029899,2]
[425341733,1781701851000,-500.0,0.00029899,2]
[425341742,1781701851000,-500.0,0.00029899,2]
[425341743,1781701851000,-500.0,0.00029899,2]
[425341741,1781701851000,-500.0,0.00029899,2]
[425341734,1781701851000,-500.0,0.00029899,2]
[425341755,1781701851000,-500.0,0.00029899,2]
[425341739,1781701851000,-500.0,0.00029899,2]
[425341735,1781701851000,-500.0,0.00029899,2]
[425341736,1781701851000,-500.0,0.00029899,2]
[425341754,1781701851000,-500.0,0.00029899,2]
[425341738,1781701851000,-500.0,0.00029899,2]
[425341737,1781701851000,-500.0,0.00029899,2]
[425341789,1781701852000,-151.0,0.00029899,7]
[425341797,1781701852000,-80540.70262416,0.000299,2]
[425341787,1781701852000,-151.0,0.00029899,3]
[425341799,1781701852000,-280.11,0.000299,30]
[425341802,1781701852000,-1003.04527222,0.000299,2]
[425341805,1781701852000,-1003.04527222,0.000299,2]
[425341798,1781701852000,-842.66977796,0.000299,30]
[425341803,1781701852000,-1003.04527222,0.000299,2]
[425341800,1781701852000,-1003.04527222,0.000299,2]
[425341806,1781701852000,-1003.04527222,0.000299,2]
[425341807,1781701852000,-1003.04527222,0.000299,2]
[425341821,1781701852000,-156.0,0.0002996,30]
[425341804,1781701852000,-1003.04527222,0.000299,2]
[425341809,1781701852000,-1003.04527222,0.000299,2]
[425341811,1781701852000,-1003.04527222,0.000299,2]
[425341819,1781701852000,-156.0,0.0002996,30]
[425341815,1781701852000,-1003.04527222,0.000299,2]
[425341810,1781701852000,-1003.04527222,0.000299,2]
[425341816,1781701852000,-1003.04527222,0.000299,2]
[425341813,1781701852000,-1003.04527222,0.000299,2]
[425341812,1781701852000,-1003.04527222,0.000299,2]
[425341814,1781701852000,-1003.04527222,0.000299,2]
[425341791,1781701852000,-151.0,0.00029899,7]
[425341808,1781701852000,-1003.04527222,0.000299,2]
[425341792,1781701852000,-151.0,0.00029899,7]
[425341771,1781701852000,-500.0,0.00029899,2]
[425341790,1781701852000,-166.280213,0.00029899,7]
[425341769,1781701852000,-500.0,0.00029899,2]
[425341768,1781701852000,-500.0,0.00029899,2]
[425341766,1781701852000,-500.0,0.00029899,2]
[425341767,1781701852000,-500.0,0.00029899,2]
[425341770,1781701852000,-500.0,0.00029899,2]
[425341773,1781701852000,-500.0,0.00029899,2]
[425341772,1781701852000,-500.0,0.00029899,2]
[425341775,1781701852000,-500.0,0.00029899,2]
[425341774,1781701852000,-500.0,0.00029899,2]
[425341820,1781701852000,-152.0,0.0002996,30]
[425341777,1781701852000,-500.0,0.00029899,2]
[425341776,1781701852000,-500.0,0.00029899,2]
[425341778,1781701852000,-500.0,0.00029899,2]
[425341779,1781701852000,-648.076079,0.00029899,2]
[425341781,1781701852000,-151.0,0.00029899,7]
[425341780,1781701852000,-151.0,0.00029899,7]
[425341782,1781701852000,-199.317399,0.00029899,7]
[425341784,1781701852000,-500.0,0.00029899,2]
[425341783,1781701852000,-199.317399,0.00029899,7]
[425341794,1781701852000,-277.474721,0.00029899,7]
[425341795,1781701852000,-277.474721,0.00029899,7]
[425341796,1781701852000,-277.474721,0.00029899,7]
[425341793,1781701852000,-277.474721,0.00029899,7]
[425341786,1781701852000,-199.317399,0.00029899,7]
[425341788,1781701852000,-151.0,0.00029899,3]
[425341785,1781701852000,-199.317399,0.00029899,7]
[425341818,1781701852000,-150.0,0.00029912,30]
[425341801,1781701852000,-1003.04527222,0.000299,2]
[425341823,1781701852000,-457.0,0.0002996,30]
[425341849,1781701852000,-150.0,0.00030061,30]
[425341858,1781701852000,-151.0,0.0003011,7]
[425341850,1781701852000,-152.0,0.00030065,4]
[425341853,1781701852000,-10903.32695874,0.0003011,2]
[425341852,1781701852000,-200.0,0.000301,10]
[425341851,1781701852000,-150.0,0.00030066,30]
[425341854,1781701852000,-212.623813,0.0003011,7]
[425341861,1781701852000,-230.362583,0.0003011,7]
[425341871,1781701852000,-500.0,0.00030129,2]
[425341860,1781701852000,-151.0,0.0003011,7]
[425341868,1781701852000,-500.0,0.00030129,2]
[425341848,1781701852000,-411.0,0.00030037,2]
[425341866,1781701852000,-500.0,0.00030129,7]
[425341864,1781701852000,-230.362583,0.0003011,7]
[425341867,1781701852000,-500.0,0.00030129,2]
[425341869,1781701852000,-500.0,0.00030129,2]
[425341865,1781701852000,-500.0,0.00030129,7]
[425341863,1781701852000,-230.362583,0.0003011,7]
[425341870,1781701852000,-500.0,0.00030129,2]
[425341873,1781701852000,-639055.99680707,0.0003013,7]
[425341872,1781701852000,-184.96108371,0.0003013,30]
[425341874,1781701852000,-367.78042418,0.0003013,7]
[425341875,1781701852000,-1490.89436833,0.0003013,7]
[425341876,1781701852000,-1153.0,0.0003013,7]
[425341862,1781701852000,-230.362583,0.0003011,7]
[425341857,1781701852000,-212.623813,0.0003011,7]
[425341859,1781701852000,-151.0,0.0003011,7]
[425341855,1781701852000,-212.623813,0.0003011,7]
[425341833,1781701852000,-151.0,0.00029972,7]
[425341824,1781701852000,-153.0,0.0002996,30]
[425341825,1781701852000,-153.0,0.0002996,30]
[425341834,1781701852000,-550.187612,0.00029972,7]
[425341826,1781701852000,-158.0,0.0002996,30]
[425341822,1781701852000,-342.0,0.0002996,30]
[425341856,1781701852000,-212.623813,0.0003011,7]
[425341830,1781701852000,-152.0,0.0002996,30]
[425341827,1781701852000,-155.0,0.0002996,30]
[425341831,1781701852000,-935.8,0.00029969,2]
[425341828,1781701852000,-153.0,0.0002996,30]
[425341829,1781701852000,-282.0,0.0002996,30]
[425341835,1781701852000,-550.187612,0.00029972,7]
[425341832,1781701852000,-7399.16,0.00029972,2]
[425341842,1781701852000,-2499.99,0.0003,2]
[425341841,1781701852000,-2499.99,0.0003,2]
[425341847,1781701852000,-550.544815,0.0003003,2]
[425341846,1781701852000,-1003.04527222,0.0003003,2]
[425341840,1781701852000,-575.40286565,0.0003,7]
[425341837,1781701852000,-550.187612,0.00029972,7]
[425341845,1781701852000,-172.08670821,0.0003,7]
[425341817,1781701852000,-1003.04527222,0.000299,2]
[425341839,1781701852000,-575.40286565,0.0003,7]
[425341838,1781701852000,-150.0,0.00029979,30]
[425341843,1781701852000,-2500.0,0.0003,2]
[425341836,1781701852000,-550.187612,0.00029972,7]
[425341844,1781701852000,-172.08670821,0.0003,7]
[425341878,1781701853000,-3959.52560089,0.0003013,7]
[425341880,1781701853000,-14892.43312874,0.0003013,7]
[425341879,1781701853000,-302.0,0.00029124,10]
[425341877,1781701853000,-209.2379584,0.000149,2]
[425341881,1781701868000,281.0,0.0003013,120]
[425341882,1781701879000,649.77666691,0.00013698,2]
[425341886,1781701947000,619.2866689,0.00013698,2]
[425341888,1781702009000,190.271,0.000147,2]
[425341887,1781702009000,2546.658,0.000147,2]
[425341889,1781702015000,619.29000233,0.00013698,2]
[425341890,1781702149000,513.23999811,0.00013698,2]
[425341891,1781702218000,513.23000192,0.00013698,2]
[425341904,1781702286000,513.23666575,0.00013698,2]
[425341906,1781702353000,513.23000444,0.00013698,2]
[425341909,1781702427000,1000.0,0.0003,120]
[425341910,1781702437000,164.65,0.00030137,120]
[425341912,1781702442000,838.15598525,0.0003013,120]
[425341913,1781702445000,200.185119,0.00026849,120]
[425341914,1781702451000,250.783665,0.00026849,120]
[425341915,1781702456000,431.523081,0.00026849,120]
[425341916,1781702467000,709.47488284,0.0003013,120]
[425341922,1781702497000,215.76154,0.00026849,120]
[425341923,1781702545000,1014.4878384,0.00027397,120]
[425341924,1781702564000,507.32,0.00030037,120]
[425341926,1781702570000,500.0,0.00030012,120]
[425341925,1781702570000,500.0,0.00030012,120]
[425341929,1781702571000,540.0,0.00030012,120]
[425341928,1781702571000,500.0,0.00030012,120]
[425341927,1781702571000,500.0,0.00030012,120]
[425341930,1781702574000,500.0,0.00029738,120]
[425341932,1781702574000,500.0,0.00029738,120]
[425341931,1781702574000,500.0,0.00029738,120]
[425341935,1781702575000,500.0,0.00029738,120]
[425341934,1781702575000,500.0,0.00029738,120]
[425341933,1781702575000,500.0,0.00029738,120]
[425341936,1781702576000,924.0,0.00029738,120]
[425341937,1781702579000,500.0,0.00029464,120]
[425341938,1781702580000,500.0,0.00029464,120]
[425341939,1781702580000,500.0,0.00029464,120]
[425341940,1781702580000,500.0,0.00029464,120]
[425341942,1781702580000,500.0,0.00029464,120]
[425341941,1781702580000,500.0,0.00029464,120]
[425341944,1781702581000,847.0,0.00029464,120]
[425341943,1781702581000,500.0,0.00029464,120]
[425341945,1781702584000,500.0,0.0002919,120]
[425341946,1781702586000,500.0,0.00028916,120]
[425341947,1781702587000,893.0,0.00028916,120]
[425341948,1781702588000,152.0,0.00013967,2]
[425341949,1781702589000,152.0,0.00013967,2]
[425341950,1781702593000,152.0,0.00029874,120]
[425341952,1781702604000,415.12475003,0.00030129,120]
[425341951,1781702604000,500.0,0.00029702,120]
[425341956,1781702619000,582.9627293,0.00030137,120]
[425341955,1781702619000,684.356101,0.00030137,120]
[425341958,1781702623000,500.0,0.00028642,120]
[425341957,1781702623000,500.0,0.00028642,120]
[425341960,1781702626000,500.0,0.00028642,120]
[425341959,1781702626000,500.0,0.00028642,120]
[425341963,1781702628000,775.0,0.00028368,120]
[425341962,1781702628000,500.0,0.00028368,120]
[425341961,1781702628000,500.0,0.00028368,120]
[425341967,1781702631000,500.0,0.00028094,120]
[425341965,1781702631000,500.0,0.00028094,120]
[425341964,1781702631000,500.0,0.00028094,120]
[425341968,1781702632000,500.0,0.00028094,120]
[425341969,1781702632000,500.0,0.00028094,120]
[425341971,1781702634000,500.0,0.0002782,120]
[425341970,1781702634000,500.0,0.00028879,120]
[425341973,1781702635000,776.264,0.0002782,120]
[425341972,1781702635000,522.6849844,0.00028879,120]
[425341974,1781702645000,649.51,0.00030137,120]
[425341975,1781702652000,597.16,0.00028629,120]
[425341977,1781702653000,597.16,0.00030129,120]
[425341976,1781702653000,597.16,0.00029907,120]
[425341979,1781702654000,597.16,0.00030129,120]
[425341978,1781702654000,597.16,0.00030129,120]
[425341980,1781702673000,501.1798481,0.00030137,120]
[425341981,1781702702000,211.0,0.00030048,120]
[425341983,1781702737000,3000.0,0.00030137,120]
[425341984,1781702745000,631.112156,0.0001467,2]
[425341985,1781702748000,500.0,0.00029702,120]
[425341987,1781702748000,500.0,0.00030129,120]
[425341986,1781702748000,500.0,0.00030129,120]
[425341988,1781702749000,500.0,0.00030129,120]
[425341996,1781702834000,-600.0,0.00014763,2]
[425341997,1781702834000,-500.0,0.00014777,2]
[425341995,1781702834000,-150.0,0.00014753,2]
[425341999,1781702834000,-116.99548736,0.00014826,2]
[425341994,1781702834000,-500.0,0.00014749,2]
[425341993,1781702834000,-210.86482236,0.00014744,2]
[425341998,1781702834000,-500.0,0.000148,2]
[425342002,1781702848000,1183.74,0.00028991,120]
[425342001,1781702848000,-326.16624899,0.00014826,2]
[425342000,1781702848000,-216.17170803,0.000148,2]
[425342005,1781702851000,500.0,0.00030129,120]
[425342004,1781702851000,500.0,0.00030129,120]
[425342003,1781702851000,500.0,0.00029702,120]
[425342006,1781702852000,500.0,0.00030129,120]
[425342009,1781702858000,805.3,0.0002628,120]
[425342010,1781702876000,467.2968,0.00014625,2]
[425342011,1781702878000,500.0,0.00029702,120]
[425342012,1781702878000,500.0,0.00030129,120]
[425342014,1781702880000,500.0,0.00030129,120]
[425342013,1781702880000,500.0,0.00030129,120]
[425342017,1781702887000,152.0,0.00029913,120]
[425342016,1781702887000,152.0,0.00014003,2]
[425342018,1781702897000,162.8,0.00028551,120]
[425342020,1781702912000,500.0,0.00029907,120]
[425342019,1781702912000,500.0,0.00028629,120]
[425342022,1781702915000,500.0,0.00030129,120]
[425342021,1781702915000,500.0,0.00030129,120]
[425342027,1781702938000,500.0,0.00030129,120]
[425342025,1781702938000,500.0,0.00029907,120]
[425342026,1781702938000,500.0,0.00030129,120]
[425342024,1781702938000,500.0,0.00028629,120]
[425342028,1781702939000,221.49633195,0.00030129,120]
[425342029,1781702952000,-156.83826365,0.00014826,2]
[425342030,1781702952000,-141.48546952,0.00014851,2]
[425342034,1781703004000,211.26,0.00029452,120]
[425342036,1781703027000,1986.44721,0.0003,120]
[425342061,1781703031000,-177.0540663,0.00014924,2]
[425342062,1781703031000,-177.0540663,0.00014925,2]
[425342064,1781703031000,-9826.7383172,0.00014998,8]
[425342059,1781703031000,-160.0,0.0001491,2]
[425342060,1781703031000,-160.0,0.00014921,2]
[425342058,1781703031000,-151.56971331,0.000149,7]
[425342057,1781703031000,-500.0,0.00014896,2]
[425342055,1781703031000,-500.0,0.00014896,2]
[425342056,1781703031000,-500.0,0.00014896,2]
[425342053,1781703031000,-500.0,0.00014896,2]
[425342049,1781703031000,-500.0,0.00014896,2]
[425342051,1781703031000,-500.0,0.00014896,2]
[425342054,1781703031000,-163.6022132,0.00014896,2]
[425342052,1781703031000,-500.0,0.00014896,2]
[425342048,1781703031000,-500.0,0.00014896,2]
[425342050,1781703031000,-500.0,0.00014896,2]
[425342047,1781703031000,-500.0,0.00014896,2]
[425342044,1781703031000,-500.0,0.00014896,2]
[425342041,1781703031000,-150.0,0.00014895,2]
[425342040,1781703031000,-300.0,0.00014895,2]
[425342042,1781703031000,-500.0,0.00014896,2]
[425342045,1781703031000,-500.0,0.00014896,2]
[425342043,1781703031000,-500.0,0.00014896,2]
[425342039,1781703031000,-458.51453048,0.00014851,2]
[425342037,1781703031000,-1126.61996026,0.00014835,2]
[425342038,1781703031000,-216.17170803,0.00014835,2]
[425342066,1781703031000,-500.0,0.00014999,2]
[425342046,1781703031000,-500.0,0.00014896,2]
[425342065,1781703031000,-500.0,0.00014999,2]
[425342069,1781703031000,-150.0,0.00015008,2]
[425342067,1781703031000,-500.0,0.00014999,2]
[425342063,1781703031000,-630.40049143,0.00014957,2]
[425342097,1781703031000,-166.66,0.00018747,2]
[425342096,1781703031000,-1500.0,0.00018584,2]
[425342093,1781703031000,-228.1,0.0001841,2]
[425342095,1781703031000,-5991.250646,0.00018533,2]
[425342094,1781703031000,-6030.069354,0.00018533,2]
[425342092,1781703031000,-166.66,0.00018361,2]
[425342090,1781703031000,-805.3,0.0001752,2]
[425342089,1781703031000,-162.8,0.00017455,2]
[425342088,1781703031000,-120.81189639,0.00017248,2]
[425342082,1781703031000,-745.0385164,0.000167,2]
[425342085,1781703031000,-5960.18390361,0.00017198,2]
[425342087,1781703031000,-312.18810361,0.00017248,2]
[425342084,1781703031000,-283.09,0.00016894,2]
[425342091,1781703031000,-150.0,0.00017577,2]
[425342083,1781703031000,-1285.12392483,0.00016704,2]
[425342086,1781703031000,-2158.74609639,0.00017198,2]
[425342070,1781703031000,-255.0,0.00016027,2]
[425342080,1781703031000,-426.26255321,0.00016438,2]
[425342071,1781703031000,-289.13517764,0.00016219,2]
[425342078,1781703031000,-500.0,0.00016438,2]
[425342073,1781703031000,-600.0,0.00016309,2]
[425342074,1781703031000,-1474.02009177,0.00016309,2]
[425342079,1781703031000,-500.0,0.00016438,2]
[425342072,1781703031000,-500.0,0.00016219,2]
[425342077,1781703031000,-500.0,0.00016438,2]
[425342076,1781703031000,-228.1,0.00016438,2]
[425342075,1781703031000,-600.0,0.00016319,2]
[425342116,1781703032000,-805.3,0.0001971,2]
[425342117,1781703032000,-167.52,0.0001981,2]
[425342120,1781703032000,-325.0,0.0002,2]
[425342118,1781703032000,-166.66,0.00019907,2]
[425342115,1781703032000,-626.05302252,0.00019706,2]
[425342114,1781703032000,-1613.0535,0.0001968,2]
[425342131,1781703032000,-20771.61098702,0.00020045,2]
[425342119,1781703032000,-165.326255,0.0002,2]
[425342127,1781703032000,-500.0,0.00020044,2]
[425342126,1781703032000,-204.29665827,0.00020044,2]
[425342125,1781703032000,-500.0,0.00020044,2]
[425342133,1781703032000,-597.16,0.00020144,2]
[425342113,1781703032000,-166.66,0.0001952,2]
[425342121,1781703032000,-434.0,0.0002,2]
[425342111,1781703032000,-19955.72,0.00019339,2]
[425342099,1781703032000,-166.66,0.00019134,2]
[425342122,1781703032000,-158.0,0.0002,2]
[425342106,1781703032000,-299.99,0.00019339,7]
[425342107,1781703032000,-150.99,0.00019339,2]
[425342110,1781703032000,-9999.99,0.00019339,2]
[425342103,1781703032000,-167.52,0.00019327,2]
[425342108,1781703032000,-9999.99,0.00019339,2]
[425342109,1781703032000,-9999.99,0.00019339,2]
[425342104,1781703032000,-1183.74,0.00019327,2]
[425342101,1781703032000,-181.63,0.00019323,2]
[425342105,1781703032000,-14553.21,0.00019339,2]
[425342102,1781703032000,-5742.3,0.00019327,2]